[Event "Azerbaijan-ch 1st League 2025"]
[Site "Baku"]
[Date "2025.01.08"]
[Round "3.10"]
[White "Ughuzov, Ravan"]
[Black "Huseynov, Ahmed"]
[Result "1-0"]
[Annotator "TA"]
[ECO "B03"]
[WhiteElo "2250"]
[BlackElo "1996"]
[PlyCount "79"]
[EventDate "2025.01.05"]
[EventType "swiss"]
[EventCountry "AZE"]
[SourceTitle "playchess.com"]
[Source "ChessBase"]
[SourceQuality "1"]
[TimeControl "40/5400+30:1800+30"]

{[%evp 20,79,34,34,100,93,208,197,207,212,187,151,178,0,0,8,0,-14,0,0,0,0,0,0,0,0,-7,-65,-64,-55,-24,-85,-78,-114,168,171,175,35,151,149,128,131,139,127,238,224,238,238,237,231,382,383,349,302,318,310,534,534,515,486,514,507]} 1. e4 {[%emt 0:00:02][%cal Be2e4,Be4e5][%mdl 32]} Nf6 {[%emt 0:00:10][%cal Bg8f6,Bf6d5,Bd5b6][%mdl 32]} 2. e5 {[%emt 0:00:05]} Nd5 {[%emt 0:00:05]} 3. d4 {[%emt 0:00:05]} d6 {[%emt 0:00:08]} 4. c4 {[%emt 0:00:03]} Nb6 {[%emt 0:00:06]} 5. f4 {[%emt 0:00:07]} dxe5 {[%emt 0:00:23]} 6. fxe5 {[%emt 0:00:04]} Nc6 {[%emt 0:00:41]} 7. Be3 {[%emt 0:00:15]} Bf5 {[%emt 0:00:54]} 8. Nc3 {[%emt 0:00:10]} e6 {[%emt 0:01:25]} 9. Nf3 {[%emt 0:00:05]} Be7 {[%emt 0:04:06]} 10. Be2 {[%emt 0:00:06]} O-O {[%emt 0:01:24]} 11. O-O {[%emt 0:00:05]} a5 {[%emt 0:18:00]} ({Black should play} 11... f6 $14) 12. d5 $16 {[%emt 0:15:17]} exd5 {[%emt 0:07:54]} (12... Nb4 $16) 13. cxd5 $18 {[%emt 0:01:23]} Nb4 {[%emt 0:00:17][%cal Rb4d5]} 14. Bxb6 $1 {[%emt 0:13:03]} cxb6 {[%emt 0:00:22]} 15. Nd4 {[%emt 0:08:00]} Bg6 {[%emt 0:13:27]} 16. Nf5 $2 {[%emt 0:06:21]} ({Only move:} 16. d6 $18) 16... Bc5+ $11 {[%emt 0:02:44] This pair of bishops is nice.} 17. Kh1 {[%emt 0:00:21]} Qe8 {[%emt 0:06:44]} 18. d6 {[%emt 0:08:43][%cal Bd5d6,Bd6d7][%mdl 32] Black must now prevent Ne7+.} Qxe5 {[%emt 0:00:43]} 19. Ne7+ {[%emt 0:00:55]} Kh8 {[%emt 0:00:09]} 20. Nxg6+ {[%emt 0:00:28]} hxg6 {[%emt 0:11:29]} 21. d7 $36 {[%emt 0:00:29][%cal Of1f7][%mdl 2048] White is pushing.} Rad8 {[%emt 0:02:27]} (21... Bd6 $5 22. g3 $8 Qe6 $11) 22. Bb5 {[%emt 0:03:32]} Nc6 {[%emt 0:04:41]} (22... Bd6 $5 23. g3 $8 Qc5 $16) 23. Qf3 {[%emt 0:13:55]} (23. Qg4 $1 $11) 23... Bd6 $15 {[%emt 0:03:03][%csl Gd6][%cal Re5h2]} (23... Rxd7 $2 24. Qh3+ (24. Bxc6 Rd2 $18) 24... Qh5 25. Qxd7 $18) (23... Qe6 $6 24. Rad1 $14) 24. Qh3+ {[%emt 0:00:19]} Qh5 {[%emt 0:00:11]} 25. Rf3 {[%emt 0:00:35] [#]} (25. Qxh5+ $1 $11 {keeps the balance.} gxh5 26. Rad1 Rxd7 27. Rd5) 25... Rxd7 $1 $17 {[%emt 0:01:50]} 26. Rd1 {[%emt 0:00:01]} (26. Nd5 Rdd8) 26... Rfd8 $2 {[%emt 0:01:41][%mdl 8192] [#]} (26... Rdd8 $1 $17 {stays on course.} 27. Qxh5+ gxh5) 27. g4 $1 $18 {[%emt 0:04:34]} Qxh3 {[%emt 0:00:29]} 28. Rxh3+ {[%emt 0:00:03]} Kg8 {[%emt 0:00:11] [#] Hoping for ...Be5.} 29. Rhd3 $1 {[%emt 0:00:02][%cal Bh3d3,Bd3d2,Bd2f2,Bf2f3][%mdl 1056] White has strong compensation. White is more active.} Kf8 {[%emt 0:01:08]} 30. Na4 {[%emt 0:00:18]} Ne5 {[%emt 0:03:42]} 31. R3d2 {[%emt 0:02:59]} ({Weaker is} 31. Nxb6 Nxd3 32. Nxd7+ Rxd7 33. Rxd3 (33. Bxd7 $2 {perishes.} Nf2+ 34. Kg1 Nxd1 $19) 33... Rd8 $15) 31... Nf3 {[%emt 0:05:15]} 32. Rf2 {[%emt 0:10:24]} Bc5 {[%emt 0:00:15]} 33. Rxd7 {[%emt 0:00:13]} Rxd7 {[%emt 0:00:04]} 34. Rxf3 {[%emt 0:00:30]} Rd8 $2 {[%emt 0:04:55]} (34... Rd1+ 35. Rf1 Rd4 36. Nxc5 bxc5) 35. Nxc5 {[%emt 0:00:18]} bxc5 {[%emt 0:00:06]} 36. g5 {[%emt 0:00:59]} Rd1+ {[%emt 0:00:50]} 37. Kg2 {[%emt 0:00:08]} Rd6 $2 {[%emt 0:00:37]} (37... Rd5 {was necessary.} 38. h4 Rd4) 38. Rd3 {[%emt 0:00:40]} Rb6 {[%emt 0:00:42]} 39. a4 {[%emt 0:00:11]} Ke7 {[%emt 0:02:16]} 40. Kf3 {[%emt 0:00:00]} 1-0

[Event "Azerbaijan-ch 1st League 2025"]
[Site "Baku"]
[Date "2025.01.08"]
[Round "3.11"]
[White "Isbatov, Kanan"]
[Black "Gurbanov, Ismayil"]
[Result "0-1"]
[Annotator "TA"]
[ECO "E05"]
[WhiteElo "1882"]
[BlackElo "2248"]
[PlyCount "143"]
[EventDate "2025.01.05"]
[EventType "swiss"]
[EventCountry "AZE"]
[SourceTitle "playchess.com"]
[Source "ChessBase"]
[SourceQuality "1"]
[TimeControl "40/5400+30:1800+30"]

{[%evp 18,143,9,0,0,0,58,19,31,29,48,49,47,42,67,62,58,44,54,62,63,53,55,56,58,59,58,30,66,46,94,96,103,90,89,90,101,110,167,151,184,100,85,78,87,0,0,-8,-6,-8,-8,-8,-8,-8,-8,-14,-14,-14,-14,-24,-23,-25,-17,-16,0,-15,-22,-36,-8,-10,0,-45,-22,-27,-29,-96,-99,-97,-99,-103,-103,-112,-88,-102,-102,-109,-100,-100,-94,-109,-109,-150,-120,-148,-133,-138,-128,-246,-246,-277,-276,-257,-259,-323,-300,-444,-400,-444,-434,-672,-709,-758,-674,-2347,-2045,-1983,-2018,-1487,-1358,-2625,-2256,-2760,-2414,-1497,-1403,-29979,-29974,-2454]} 1. d4 {[%emt 0:00:03]} Nf6 {[%emt 0:04:58]} 2. c4 {[%emt 0:00:08]} e6 {[%emt 0:00:03]} 3. Nf3 {[%emt 0:00:11]} d5 {[%emt 0:00:12]} 4. g3 {[%emt 0:00:07]} Be7 {[%emt 0:00:05]} 5. Bg2 {[%emt 0:00:05]} O-O {[%emt 0:00:04]} 6. O-O {[%emt 0:00:05]} dxc4 {[%emt 0:00:04]} 7. Qc2 {[%emt 0:00:09]} a6 {[%emt 0:00:05]} 8. a4 {[%emt 0:00:04]} Bd7 {[%emt 0:00:10]} 9. Rd1 {[%emt 0:00:07]} Bc6 {[%emt 0:00:19]} 10. Nc3 {[%emt 0:00:12]} Bxf3 {[%emt 0:06:11]} 11. Bxf3 {[%emt 0:00:01]} c6 {[%emt 0:00:10]} (11... Nc6 $11) 12. e4 {[%emt 0:04:18]} a5 {[%emt 0:04:37]} 13. Ne2 {[%emt 0:13:15][%cal Oc1f4]} Na6 {[%emt 0:01:48]} 14. Qxc4 {[%emt 0:00:52]} Nb4 {[%emt 0:00:02]} 15. Bf4 {[%emt 0:06:18]} Qb6 {[%emt 0:01:36]} 16. Nc3 {[%emt 0:08:11]} Rfd8 {[%emt 0:00:07]} 17. Rac1 {[%emt 0:05:32] Prevents Nc2} Rac8 {[%emt 0:14:55]} 18. Be3 {[%emt 0:13:55]} Qa6 {[%emt 0:26:07]} 19. Qb3 {[%emt 0:02:44]} Nd7 {[%emt 0:09:33]} 20. Be2 {[%emt 0:19:50]} Qa8 {[%emt 0:03:39]} 21. Bc4 {[%emt 0:03:01][%cal Oc4e6]} Nf6 {[%emt 0:01:19]} 22. f3 {[%emt 0:05:20]} Kf8 {[%emt 0:00:56]} 23. Ne2 {[%emt 0:01:53][%cal Bc3e2,Be2f4,Bf4e6][%mdl 32] aiming for Nf4.} c5 {[%emt 0:02:32] [#]} (23... Ne8 $14 {deserves consideration.}) 24. Bxe6 $1 $16 {[%emt 0:04:23]} fxe6 {[%emt 0:00:08]} 25. Nf4 $1 {[%emt 0:00:01]} Rc6 {[%emt 0:01:31]} 26. Nxe6+ {[%emt 0:00:44]} Rxe6 {[%emt 0:00:01]} 27. Qxe6 {[%emt 0:00:02]} cxd4 {[%emt 0:01:04]} (27... Qa6 $16 28. Qxa6 Nxa6) 28. Rxd4 $18 {[%emt 0:00:34]} (28. Bxd4 Nc6 29. Bf2 Bb4 $16) 28... Nc6 {[%emt 0:02:39] [#]} 29. Rxd8+ {[%emt 0:00:42]} ({White should play} 29. Rd5 $1 $18 {[%cal Rd5f5]}) 29... Qxd8 $16 {[%emt 0:00:01]} 30. e5 {[%emt 0:07:37]} Qd5 {[%emt 0:01:20]} (30... Nd4 31. Bxd4 Qxd4+ 32. Kh1) 31. Qxd5 {[%emt 0:01:00]} (31. Qc8+ $16 Ne8 32. Qf5+ (32. Qxb7 Qd3 $16) 32... Kg8 33. f4) 31... Nxd5 $11 {[%emt 0:00:01]} 32. Bc5 $132 {[%emt 0:00:01][%mdl 2048] White has counterplay} Nxe5 {[%emt 0:00:27]} 33. Bxe7+ {[%emt 0:00:05]} Kxe7 {[%emt 0:00:17]} 34. Rc5 {[%emt 0:01:31][%csl LRa5,LRd5]} Kd6 {[%emt 0:00:01]} 35. Rxa5 {[%emt 0:00:39]} Nxf3+ {[%emt 0:00:02]} 36. Kg2 {[%emt 0:00:48]} Ne1+ {[%emt 0:04:17] A dynamic duo of knights.} 37. Kf1 {[%emt 0:00:52]} Nd3 {[%emt 0:00:01][%cal Od6c6]} 38. Rb5 {[%emt 0:01:04]} Kc6 {[%emt 0:00:46]} 39. Rb3 {[%emt 0:01:04]} Nc5 {[%emt 0:03:51][%csl LRa4,LRb3]} 40. Ra3 {[%emt 0:00:00]} Kb6 {[%emt 0:00:00]} 41. a5+ {[%emt 0:01:38]} Kb5 {[%emt 0:08:45]} 42. Ke2 {[%emt 0:00:57]} Kb4 {[%emt 0:02:05]} 43. Rf3 {[%emt 0:06:35]} Ne6 {[%emt 0:35:11]} (43... Kxa5 $2 {loses.} 44. Rf5 $18) 44. Rf7 {[%emt 0:00:32]} Ndc7 {[%emt 0:00:00]} 45. Kd3 {[%emt 0:07:24]} Kxa5 {[%emt 0:00:00]} 46. Kc3 {[%emt 0:01:13]} (46. h4 $11 {keeps the balance.}) 46... Kb5 $17 {[%emt 0:00:00]} 47. Rf5+ {[%emt 0:03:22]} Kc6 {[%emt 0:00:00]} 48. Rf7 {[%emt 0:00:08]} b6 {[%emt 0:00:00]} 49. Kc4 {[%emt 0:03:36]} Kd6 {[%emt 0:00:00]} 50. Kb4 {[%emt 0:00:56]} Kd5 {[%emt 0:00:00]} 51. Rd7+ {[%emt 0:00:17]} Ke4 {[%emt 0:00:00]} 52. Rf7 {[%emt 0:00:02]} Kd3 {[%emt 0:00:00]} 53. Kb3 {[%emt 0:00:38]} Nd5 {[%emt 0:00:00]} 54. h4 {[%emt 0:05:12]} Kd4 {[%emt 0:00:00]} 55. Kc2 {[%emt 0:01:01]} Kc4 {[%emt 0:00:00]} 56. b3+ {[%emt 0:00:54]} Kd4 {[%emt 0:00:00]} 57. Kb2 {[%emt 0:00:43]} (57. g4 $17) 57... h5 $19 {[%emt 0:07:00]} 58. Rf5 {[%emt 0:00:21]} g6 {[%emt 0:00:00]} 59. Rf7 {[%emt 0:00:24]} Ke5 {[%emt 0:00:00]} 60. Rb7 {[%emt 0:00:40]} Nc5 {[%emt 0:00:00]} 61. Rb8 {[%emt 0:01:33]} (61. Rg7 $142 Kf6 62. Rg8) 61... Ne4 {[%emt 0:00:00]} 62. Re8+ {[%emt 0:00:27] [#]} Kf5 $1 {[%emt 0:00:00]} 63. Rd8 {[%emt 0:00:14]} (63. b4 $142) 63... Nef6 {[%emt 0:00:00]} 64. Rh8 {[%emt 0:01:11]} Kg4 {[%emt 0:00:00]} 65. Rh6 {[%emt 0:00:07]} Ne7 {[%emt 0:00:00]} 66. Rh8 {[%emt 0:00:18]} Kxg3 {[%emt 0:00:00]} 67. Rf8 {[%emt 0:00:15]} Nfd5 {[%emt 0:00:00]} 68. Kc2 {[%emt 0:00:17]} Kxh4 {[%emt 0:00:00]} 69. Kd3 {[%emt 0:00:09]} Kg3 {[%emt 0:00:00] White must now prevent ...h4.} 70. Ke2 {[%emt 0:00:09]} h4 {[%emt 0:00:00]} 71. Kf1 {[%emt 0:00:20]} g5 {[%emt 0:00:00]} 72. Ke2 {[%emt 0:07:29]} 0-1

[Event "Azerbaijan-ch 1st League 2025"]
[Site "Baku"]
[Date "2025.01.08"]
[Round "3.12"]
[White "Hajialiyev, Islam"]
[Black "Baghirov, Orkhan"]
[Result "1-0"]
[Annotator "TA"]
[ECO "B22"]
[WhiteElo "2217"]
[BlackElo "1989"]
[PlyCount "79"]
[EventDate "2025.01.05"]
[EventType "swiss"]
[EventCountry "AZE"]
[SourceTitle "playchess.com"]
[Source "ChessBase"]
[SourceQuality "1"]
[TimeControl "40/5400+30:1800+30"]

{[%evp 15,79,0,0,0,87,73,66,68,211,199,198,135,347,359,341,350,366,364,437,443,524,428,448,431,570,542,554,343,346,342,460,464,428,413,458,415,418,395,420,365,370,362,422,314,485,479,448,345,543,496,535,529,640,679,736,618,984,709,983,885,1128,1107,1154,1141,6023,4925]} 1. e4 {[%emt 0:00:02]} c5 {[%emt 0:01:01]} 2. c3 {[%emt 0:00:07]} Nf6 {[%emt 0:00:01]} 3. e5 {[%emt 0:00:08]} Nd5 {[%emt 0:00:01]} 4. d4 {[%emt 0:00:07]} cxd4 {[%emt 0:00:02]} 5. Nf3 {[%emt 0:00:07]} d6 {[%emt 0:00:03]} 6. cxd4 {[%emt 0:00:49]} Nc6 {[%emt 0:00:01]} 7. Bc4 {[%emt 0:01:07]} Nb6 {[%emt 0:00:03]} 8. Bb5 {[%emt 0:00:22]} dxe5 {[%emt 0:05:04]} 9. Nxe5 {[%emt 0:00:45]} Qd5 {[%emt 0:04:11]} (9... Bd7 $11 10. Bxc6 Bxc6) 10. Bxc6+ $16 {[%emt 0:07:03]} bxc6 {[%emt 0:00:04]} 11. O-O {[%emt 0:00:38] Nc3 is the strong threat. White is slightly better.} c5 {[%emt 0:14:04]} (11... g6 $14) 12. Nc3 $18 {[%emt 0:03:08]} Qxd4 {[%emt 0:00:30]} 13. Qe2 {[%emt 0:00:50]} ({White should try} 13. Nb5 $18 Qxe5 14. Re1) 13... Nd7 $2 {[%emt 0:08:41] [#]} (13... f6 $16 14. Qh5+ g6 15. Nxg6 Bg4) 14. Nxf7 $1 {[%emt 0:16:04][%mdl 512]} Kxf7 {[%emt 0:08:37]} 15. Qf3+ {[%emt 0:01:13]} Nf6 {[%emt 0:06:53]} 16. Qxa8 {[%emt 0:00:35]} Qg4 {[%emt 0:00:21]} 17. Be3 {[%emt 0:04:57]} h5 {[%emt 0:02:45]} 18. Rfe1 {[%emt 0:06:08]} h4 {[%emt 0:01:11]} 19. h3 {[%emt 0:00:40]} (19. Bxc5 h3 $18) 19... Qf5 {[%emt 0:00:10]} 20. Qxa7 {[%emt 0:00:45]} Qg6 {[%emt 0:00:06]} 21. Qxc5 {[%emt 0:11:55]} Bxh3 {[%emt 0:02:12]} 22. Qg5 {[%emt 0:00:22]} Bc8 {[%emt 0:00:08]} 23. Qxg6+ {[%emt 0:00:08]} Kxg6 {[%emt 0:00:02]} 24. Bc5 {[%emt 0:33:27]} h3 {[%emt 0:02:19]} 25. f3 {[%emt 0:06:16]} hxg2 {[%emt 0:05:56]} 26. Kxg2 {[%emt 0:00:17]} (26. Bxe7 Bxe7 27. Rad1 Bb4 28. Kxg2 Bd7 $15) 26... Nh5 {[%emt 0:00:08]} 27. Ne2 {[%emt 0:04:09] Prevents Nf4+.} ({Don't take} 27. Bxe7 Nf4+ 28. Kg1 Nd3 $18) 27... Kf7 {[%emt 0:00:04]} 28. Kf2 {[%emt 0:00:27]} g6 {[%emt 0:02:06]} 29. Rac1 {[%emt 0:00:21]} Bb7 {[%emt 0:02:05]} (29... Bg7 $142 30. Bd4 Be6) 30. Bd4 {[%emt 0:00:25]} Nf6 {[%emt 0:00:37]} 31. Rh1 {[%emt 0:00:55] Prevents Rh3.} Bh6 {[%emt 0:00:04]} (31... Rxh1 {keeps fighting.} 32. Rxh1 e5) 32. Rcg1 {[%emt 0:00:38] White is clearly winning.} Rh7 {[%emt 0:00:44]} 33. Bxf6 {[%emt 0:01:04]} exf6 {[%emt 0:00:19]} 34. Rd1 {[%emt 0:00:07]} Ke6 {[%emt 0:01:06]} 35. Ng3 {[%emt 0:01:16] [#] Strongly threatening Rhe1+.} f5 {[%emt 0:00:31]} 36. a4 {[%emt 0:00:36][%cal Ba2a4,Ba4a5][%mdl 32]} Ke5 {[%emt 0:13:19]} 37. a5 {[%emt 0:00:28]} Rh8 {[%emt 0:02:09]} 38. Rhe1+ {[%emt 0:00:23]} Kf6 {[%emt 0:00:50]} 39. Rd6+ {[%emt 0:00:16]} Kg5 {[%emt 0:00:01]} 40. Ne2 {[%emt 0:00:00] Black did not feel at home in the position after the opening.   Weighted Error Value: White=0.40/Black=0.67.  Loses game:     	---       	Black=1      Mistake:       	White=1     	Black=4      Inaccurate:     	White=1     	Black=2      OK:         	White=11    	Black=4      Best:        	White=2     	---} 1-0

[Event "Azerbaijan-ch 1st League 2025"]
[Site "Baku"]
[Date "2025.01.08"]
[Round "3.13"]
[White "Alizada, Pasham"]
[Black "Safarli, Ramzi"]
[Result "1-0"]
[Annotator "TA"]
[ECO "B28"]
[WhiteElo "2117"]
[BlackElo "1792"]
[PlyCount "75"]
[EventDate "2025.01.05"]
[EventType "swiss"]
[EventCountry "AZE"]
[SourceTitle "playchess.com"]
[Source "ChessBase"]
[SourceQuality "1"]
[TimeControl "40/5400+30:1800+30"]

{[%evp 10,75,26,12,19,19,75,39,45,7,10,9,7,0,0,0,0,-4,0,0,0,0,33,50,56,-13,34,6,41,21,45,29,41,20,25,20,84,36,121,106,191,201,202,212,202,218,200,191,291,297,294,306,445,324,339,339,361,348,460,452,852,836,1238,854,804,812,1507,1537]} 1. e4 {[%emt 0:00:23]} c5 {[%emt 0:02:29]} 2. Nf3 {[%emt 0:00:05]} a6 {[%emt 0:00:09]} 3. c4 {[%emt 0:00:04]} Nc6 {[%emt 0:00:08]} 4. d4 {[%emt 0:00:06]} cxd4 {[%emt 0:00:08]} 5. Nxd4 {[%emt 0:00:03]} e5 {[%emt 0:00:09]} 6. Nc2 {[%emt 0:02:45]} Nf6 {[%emt 0:01:13]} 7. Nc3 {[%emt 0:00:43]} d6 {[%emt 0:01:58]} (7... Bc5 $11) 8. Bg5 {[%emt 0:00:43]} Be7 {[%emt 0:00:17][%cal Of6e4]} 9. Bxf6 {[%emt 0:02:14]} Bxf6 {[%emt 0:00:09]} 10. Nd5 {[%emt 0:00:12]} Bg5 {[%emt 0:00:04] [#]} 11. h4 $1 {[%emt 0:00:39]} Bh6 {[%emt 0:00:40]} 12. g4 {[%emt 0:22:09]} Bf4 $1 {[%emt 0:02:11]} 13. Be2 {[%emt 0:07:48]} Be6 {[%emt 0:05:44]} 14. Nxf4 {[%emt 0:07:16]} exf4 {[%emt 0:00:09]} 15. Qd2 {[%emt 0:00:16]} Qf6 {[%emt 0:15:50]} 16. O-O-O {[%emt 0:01:05]} (16. Qxd6 $2 Qxb2 17. Qd3 O-O $19 (17... Nb4 $2 18. Nxb4 Qxa1+ 19. Bd1 $19)) 16... Rd8 {[%emt 1:07:12]} 17. Nd4 {[%emt 0:10:16]} (17. Kb1 $14) 17... Qe5 {[%emt 0:00:00]} (17... f3 $1 $11 {should be considered.} 18. Nxf3 Bxg4) 18. Qc3 {[%emt 0:09:16]} O-O {[%emt 0:00:00]} 19. f3 {[%emt 0:01:18]} (19. Nxc6 {simplifies} bxc6 20. Qxe5 dxe5 21. Rxd8 Rxd8 22. c5) 19... Na5 {[%emt 0:00:00][%cal Oe6c4]} 20. Kb1 {[%emt 0:01:55]} Rfe8 {[%emt 0:00:00]} 21. Rd2 {[%emt 0:03:04]} Rc8 {[%emt 0:00:00]} (21... Bxg4 22. Rg1 Bd7 23. Rg5 $16) 22. b3 {[%emt 0:00:24]} b6 {[%emt 0:00:00]} (22... Bxg4 $11 23. Rg1 Bd7) 23. Qb2 {[%emt 0:01:34]} (23. Rhd1 $16) 23... Nb7 {[%emt 0:00:00]} ({Black should try} 23... Bxg4 $14 24. Rg1 Be6) 24. Rhd1 $16 {[%emt 0:01:48]} f6 {[%emt 0:00:00]} (24... Ra8 $16 25. g5 Bh3) 25. c5 $18 {[%emt 0:08:30]} Nxc5 {[%emt 0:00:00]} 26. Nxe6 {[%emt 0:00:14]} Nxe6 {[%emt 0:00:00]} (26... Rxe6 $2 {too greedy.} 27. Bc4 Qxb2+ 28. Rxb2 $18 (28. Kxb2 Na4+ 29. Ka3 Rxc4 $18)) 27. Rxd6 {[%emt 0:00:06]} b5 {[%emt 0:02:49]} 28. Rxa6 {[%emt 0:00:21]} Qb8 {[%emt 0:00:44]} (28... Qc5 $142 29. Rad6 (29. Rc1 Qf2 $16) 29... Qe3) 29. b4 {[%emt 0:01:03]} Qb7 {[%emt 0:01:03]} 30. Rad6 {[%emt 0:00:33] Threatens to win with Qb3.} Kh8 {[%emt 0:00:36]} (30... Rc6 {keeps fighting.} 31. Qb3 Rxd6 32. Rxd6 Qe7) 31. Qb3 {[%emt 0:02:13]} Nf8 {[%emt 0:00:32]} 32. R6d5 {[%emt 0:17:24]} Re5 {[%emt 0:00:22]} 33. Bxb5 {[%emt 0:00:00]} Qb6 {[%emt 0:00:30]} 34. a4 {[%emt 0:00:00]} Ne6 {[%emt 0:01:15]} (34... Qa7 $142 35. h5 Rxd5 36. exd5 Nd7) 35. Rd6 {[%emt 0:00:00]} Qf2 {[%emt 0:00:11] [#]} 36. Qc4 $3 {[%emt 0:00:00][%mdl 512]} Rb8 {[%emt 0:01:21]} (36... Rf8 37. Rf1) 37. Rxe6 {[%emt 0:00:00]} Qxf3 {[%emt 0:00:12]} 38. Red6 {[%emt 0:00:00]} 1-0